Cogmind - Beta 14 @@@ ROGUE MODE // 2024.08.29 @ 01:02:03 Player: J1ang-5h1 Result: Destroyed by G-73 Enforcer with Phase Gun Performance ------------- Evolutions (8) 4000 Regions Visited (16) 3200 Robots Destroyed (230) 1150 Value Destroyed (11817) 11817 Prototype IDs (79) 1580 Alien Tech Used (2) 400 Bonus (8112) 8112 TOTAL SCORE: 30259 Bonus ------- Triggered High Security 1000 High Alert Combat Kills 4158 Follower Combat Kills 1966 Registered with UFD 300 Met R17 at Cetus 500 Scanned by Researcher 500 Friendly Fire -312 Cogmind --------- Core Integrity 0/1450 Matter 177/300 Energy 89/100 System Corruption 31% Temperature Cool (0) Movement Core (50) Location -2/Research Parts ------- > --- POWER (3) -------- (None) > --- PROPULSION (5) --- (None) > --- UTILITY (13) ----- (None) > --- WEAPON (2) ------- (None) > --- INVENTORY (5) ---- Improved Heavy Treads Improved Heavy Treads Improved Remote Force Field Peak State ------------ > --- POWER ------------ Backup Power VII Micro Antimatter Reactor Micro Antimatter Reactor > --- PROPULSION ------- Flexi-carbon Leg Biometal Leg Myomer Exoskeleton > --- UTILITY ---------- Advanced Heat Sink Advanced Cooling System High-capacity Storage Unit Advanced Trap Scanner Improved Signal Interpreter Advanced Weapon Cycler Advanced Transmission Jammer SHELL Armor Graphene Brace Focal Shield A0-MCA's Component Scanner > --- WEAPON ----------- Heavy Quantum Rifle Compact Tesla Bomb Launcher > --- INVENTORY -------- Advanced Heat Sink High-capacity Storage Unit Seismic Detector Advanced Launcher Guidance Computer Launcher Loader Quantum Capacitor Medium Regenerative Plating Point Defense Array Mini Drone Bay Stealth Drone Bay Transdimensional Reconstructor Advanced Plasma Rifle Enhanced Quantum Rifle Helical Railgun Enhanced Gauss Cannon Improved Plasma Cutter Falx [Rating: 197] Favorites ----------- Power Quantum Reactor Engine Improved Ion Engine Power Core Light Nuclear Core Reactor Quantum Reactor Propulsion Light Treads Treads Light Treads Leg Aluminum Leg Wheel Armored Huge Wheel Utility High-capacity Storage Unit Device Advanced Heat Sink Storage High-capacity Storage Unit Processor A0-MCA's Component Scanner Protection Medium Regenerative Plating Weapon Autogun Energy Gun Heavy Quantum Rifle Energy Cannon Advanced Plasma Cannon Ballistic Gun Autogun Ballistic Cannon Bore Cannon Launcher Grenade Launcher Slashing Weapon Falx Build | -11 -10 -10 -9 -9 -6 -6 -6 -5 -5 -5 -5 -4 -4 -3 -3 -2 ------- Run | Yrd Mat Sub Rec Scr Fac Ext Cet Fac Upp Upp Zhi Pro Fac Res Tes Res Slots Evolved 16 | . . . . . 8 . . 2 . . . . 2 2 . 2 Power 2 | . . . . . . . . 1 . . . . . 1 . . Propulsion 3 | . . . . . 1 . . 1 . . . . . 1 . . Utility 11 | . . . . . 7 . . . . . . . 2 . . 2 Weapon . | . . . . . . . . . . . . . . . . . Parts Attached 265 | 2 14 25 2 19 8 44 11 9 1 3 2 16 15 10 47 37 Power 29 | . 1 1 2 1 1 3 2 1 . . . 1 . 1 10 5 Engine 6 | . 1 . 2 1 1 1 . . . . . . . . . . Core 5 | . . 1 . . . 1 . . . . . . . . 3 . Reactor 18 | . . . . . . 1 2 1 . . . 1 . 1 7 5 Propulsion 32 | . 4 . . 7 1 5 . 2 . . . . 2 2 6 3 Treads 18 | . 2 . . 4 1 3 . 2 . . . . 1 2 3 . Leg 6 | . . . . . . . . . . . . . . . 3 3 Wheel 8 | . 2 . . 3 . 2 . . . . . . 1 . . . Hover . | . . . . . . . . . . . . . . . . . Flight . | . . . . . . . . . . . . . . . . . Utility 121 | 1 1 11 . 7 6 22 3 5 1 3 . 5 10 5 23 18 Device 83 | 1 . 6 . 4 3 13 2 4 1 3 . 3 8 5 18 12 Storage 5 | . 1 1 . . 1 1 . . . . . . . . . 1 Processor 4 | . . . . . 1 . . 1 . . . . . . . 2 Hackware . | . . . . . . . . . . . . . . . . . Protection 29 | . . 4 . 3 1 8 1 . . . . 2 2 . 5 3 Artifact . | . . . . . . . . . . . . . . . . . Weapon 83 | 1 8 13 . 4 . 14 6 1 . . 2 10 3 2 8 11 Energy Gun 5 | . . . . . . . . . . . . . . . . 5 Energy Cannon 6 | . . 1 . . . 3 1 . . . . 1 . . . . Ballistic Gun 34 | 1 6 6 . 4 . 7 1 . . . . 1 . 1 6 1 Ballistic Cannon 16 | . . 1 . . . 1 2 1 . . 1 4 2 1 2 1 Launcher 18 | . 2 5 . . . 1 1 . . . . 4 1 . . 4 Special Weapon . | . . . . . . . . . . . . . . . . . Impact Weapon . | . . . . . . . . . . . . . . . . . Slashing Weapon 4 | . . . . . . 2 1 . . . 1 . . . . . Piercing Weapon . | . . . . . . . . . . . . . . . . . Special Melee Weapon . | . . . . . . . . . . . . . . . . . Unidentified Prototypes 2 | . . . . . . . . . . . . 1 . . . 1 Corrupted Parts 2 | . . . . . . . . . . . . . . . . 2 System Corruption 6 | . . . . . . . . . . . . . . . . 6 Parts Lost 68 | . . 1 . . . 13 1 . . . . 1 5 1 20 26 Power 13 | . . 1 . . . 1 . . . . . . . . 5 6 Propulsion 11 | . . . . . . 4 . . . . . . 1 . 3 3 Utility 36 | . . . . . . 7 1 . . . . 1 3 1 10 13 Weapon 8 | . . . . . . 1 . . . . . . 1 . 2 4 Highest Loss Streak 11 | . . 1 . . . 7 1 . . . . 1 2 1 6 11 To Critical Strikes . | . . . . . . . . . . . . . . . . . Average Slot Usage (%) 88 | . 99 99 100 84 61 90 86 88 88 88 88 86 88 84 83 67 Engine 5 | . 13 2 6 11 4 4 . . . . . . . . . . Core 2 | . . 11 7 . . . . . . . . . . . 1 2 Reactor 3 | . . . . . . . 6 11 11 11 11 11 10 13 11 8 Treads 15 | . 4 28 28 24 12 9 . 11 11 11 11 11 9 9 8 . Wheel 1 | . 16 . . . . 3 6 . . . . . . . . . Device 19 | . 14 11 . 8 13 33 31 27 29 29 29 27 23 26 29 20 Storage 8 | . 14 14 14 9 4 5 6 5 5 5 5 5 5 4 4 3 Processor 4 | . . . . . 4 5 6 6 11 11 11 11 10 9 9 7 Protection 7 | . . 2 14 6 11 9 14 11 5 5 5 6 17 10 6 4 Ballistic Gun 13 | . 27 20 28 21 9 8 5 5 5 5 5 2 2 1 5 1 Ballistic Cannon 1 | . . 2 . . . . 4 5 5 5 3 2 2 6 3 1 Peak Build Rating 197 | 7 12 17 17 48 78 83 83 122 121 123 125 128 141 157 179 197 Average Rating 67 | 6 10 14 16 22 70 66 79 118 120 121 123 123 135 153 157 160 On Entrance 83 | 6 7 12 17 16 48 78 71 83 120 121 123 125 128 141 155 163 Naked Turns 36 | . . . . . . . . . . . . . . . . 36 Heaviest Build 156 | 13 50 58 63 63 113 109 101 122 110 109 109 118 128 156 156 130 Greatest Support 178 | 20 40 40 40 79 79 79 28 160 160 160 160 160 160 160 178 148 Greatest Overweight (x) 15 | . 2 1 1 15 1 5 3 . . . . . 4 1 1 1 Average Overweight (x) . | . . 1 1 . 1 1 2 . . . . . . . . . Largest Inventory Capacity 20 | 8 20 20 20 20 20 20 20 20 20 20 20 20 20 20 20 20 Average Capacity 18 | 8 16 20 20 15 20 20 20 20 20 20 20 20 20 20 20 19 Most Carried 20 | 7 20 20 20 20 18 20 20 20 20 20 20 20 20 20 20 20 Average Carried 17 | 6 16 19 19 15 10 18 19 18 19 19 19 19 18 19 19 16 Final Capacity 20 | 8 20 20 20 5 20 20 20 20 20 20 20 20 20 20 20 5 Final Carried 20 | 7 20 20 20 5 18 20 20 20 20 20 20 20 20 20 20 5 Class Distribution -------------------- 53% | Mutant 37% | Scavenger-Mutant 8% | Commander-Mutant Dominant Class ---------------- Mutant | -10/Materials Mutant | -10/Subcaves Mutant | -9/Recycling Mutant | -9/Scraptown Mutant | -6/Factory Commander-Mutant | -6/Extension Commander-Mutant | -6/Cetus Scavenger-Mutant | -5/Factory Scavenger-Mutant | -5/Upper Caves Scavenger-Mutant | -5/Upper Caves Scavenger-Mutant | -5/Zhirov Scavenger-Mutant | -4/Proximity Caves Scavenger-Mutant | -4/Factory Scavenger-Mutant | -3/Research Scavenger-Mutant | -3/Testing Scavenger-Mutant | -2/Research Resources | -11 -10 -10 -9 -9 -6 -6 -6 -5 -5 -5 -5 -4 -4 -3 -3 -2 ----------- Run | Yrd Mat Sub Rec Scr Fac Ext Cet Fac Upp Upp Zhi Pro Fac Res Tes Res Matter Collected 8652 | 328 492 580 437 180 186 1823 222 . 166 147 10 577 531 219 1888 866 Remotely . | . . . . . . . . . . . . . . . . . Salvage Created 13006 | 181 203 167 608 . 232 1841 247 . 172 137 333 934 939 200 4184 2628 Parts 569 | 14 18 19 18 . 17 88 4 . 7 6 1 32 35 6 198 106 Haulers Intercepted 3 | . 2 . . . . . . . . . . . . . 1 . Recyclers Shooed 10 | 1 . . 3 . . 5 . . . . . . . . 1 . Parts Field Recycled . | . . . . . . . . . . . . . . . . . Retrieved Matter . | . . . . . . . . . . . . . . . . . Parts Self-Destructed 122 | . . 11 . . . . . . 19 50 1 41 . . . . Prevented . | . . . . . . . . . . . . . . . . . Kills | -11 -10 -10 -9 -9 -6 -6 -6 -5 -5 -5 -5 -4 -4 -3 -3 -2 ------- Run | Yrd Mat Sub Rec Scr Fac Ext Cet Fac Upp Upp Zhi Pro Fac Res Tes Res Combat Hostiles Destroyed 169 | . 4 11 . . 3 21 3 . 3 1 . 19 16 5 56 27 Melee 1 | . . . . . . 1 . . . . . . . . . . Guns 79 | . 1 3 . . 3 15 . . 1 . . . 1 . 42 13 Cannons 51 | . . . . . . 5 2 . 2 1 . 9 11 5 14 2 AOE 25 | . 3 8 . . . . . . . . . 10 1 . . 3 Classes Destroyed 22 | 2 4 3 . . 2 2 . . . 2 . 2 3 . 2 . Worker 5 | . . . . . 2 . . . . . . . 1 . 2 . Builder 12 | . . . . . . 3 . . . . . . . . 7 2 Tunneler 6 | 5 . . . . . . . . . . . . . . . 1 Hauler 3 | . 2 . . . . . . . . . . . . . 1 . Recycler 17 | 1 . . 6 . . 6 . . . . . . . . 3 1 Mechanic 3 | . . . . . . . . . . . . . . . 2 1 Turret 2 | . . 2 . . . . . . . . . . . . . . Watcher 6 | . 2 . . . 1 1 1 . . . . . . . . 1 Swarmer 31 | . 3 6 . . . 9 . . . . . 4 2 . 7 . Grunt 59 | . 1 . . . 2 4 . . 2 . . 9 5 1 21 14 Brawler 6 | . . . . . . . . . . . . 3 . . 2 1 Duelist 2 | . . . . . . . . . . 1 . . . . . 1 Protector 4 | . . . . . . . . . . . . 1 . . 1 2 Researcher 6 | . . . . . . . . . . . . . . . 6 . Sentry 18 | . . 1 . . . 6 . . 1 . . 2 2 1 3 2 Specialist 2 | . . . . . . . . . . . . . 2 . . . Hunter 20 | . . . . . . . . . . . . . 2 . 14 4 Programmer 17 | . . . . . 1 . . . . . . . 2 3 8 3 Heavy 1 | . . . . . . . . . . . . . 1 . . . Behemoth 2 | . . . . . . 2 . . . . . . . . . . Cetus Guard 3 | . . . . . . . 3 . . . . . . . . . Subdweller 4 | . . 4 . . . . . . . . . . . . . . Scrapoid 1 | . . . . . . . . . . 1 . . . . . . Best Kill Streak 10 | 5 3 4 3 . 2 4 2 . 2 1 . 7 4 3 10 9 Combat Bots Only 8 | . 3 4 . . 1 4 2 . 2 1 . 7 3 3 8 8 Max Kills in Single Turn 4 | 1 3 3 1 . 2 2 1 . 1 2 . 3 2 1 2 4 Gunslinging . | . . . . . . . . . . . . . . . . . Exploded 3 | . 3 3 . . . . . . . . . 3 1 . . 2 Melee 1 | . . . . . . 1 . . . . . . . . . . Uniques/NPCs Destroyed . | . . . . . . . . . . . . . . . . . Combat | -11 -10 -10 -9 -9 -6 -6 -6 -5 -5 -5 -5 -4 -4 -3 -3 -2 -------- Run | Yrd Mat Sub Rec Scr Fac Ext Cet Fac Upp Upp Zhi Pro Fac Res Tes Res Hostile Shots Fired 1799 | . 6 79 . . 15 301 20 . 7 7 . 151 152 71 511 479 Missed 574 | . 1 29 . . 4 118 10 . 1 1 . 54 54 29 151 122 Damage Taken 20138 | . 76 601 . . 178 2066 225 . 84 94 . 1467 2089 622 5131 7505 Core 2218 | . 22 80 . . 14 187 20 . . 21 . 136 73 23 269 1373 Absorbed by Shields 2413 | . . . . . . 72 . . . . . 185 . 307 1094 755 Reduced by Siege Mode 216 | . . . . . . . . . . . . . . . 216 . Redirected to Shielding 49 | . . . . . . . . . . . . . . . 33 16 Ignored by Resistances 2023 | . . . . . . 432 60 . 24 18 . 398 630 27 227 207 Regen/Repaired (Parts) 2823 | . . . . . 82 . 30 . 13 18 . 236 285 87 926 1146 Core Remaining (%) 81 | 100 . . . 59 . . 74 . . . . 84 93 . 77 . Volleys Fired 682 | 18 23 54 15 . 24 85 11 . 6 11 . 43 56 19 218 99 Largest 2 | 2 2 2 2 . 2 2 2 . 2 2 . 2 2 2 2 2 Hottest 176 | 40 46 80 46 . 58 142 142 . 92 92 . 155 164 114 114 176 Shots Fired 1208 | 36 42 67 30 . 50 161 22 . 12 21 . 64 103 38 388 174 Gun 685 | 36 38 28 30 . 50 90 8 . 6 10 . 7 17 . 237 128 Cannon 451 | . . 10 . . . 71 14 . 6 11 . 41 85 38 151 24 Launcher 72 | . 4 29 . . . . . . . . . 16 1 . . 22 Special . | . . . . . . . . . . . . . . . . . Kinetic 917 | 36 38 32 30 . 50 106 19 . 12 21 . 29 55 38 388 63 Thermal 219 | . . 6 . . . 55 3 . . . . 19 47 . . 89 Explosive 50 | . 4 29 . . . . . . . . . 16 1 . . . Electromagnetic 22 | . . . . . . . . . . . . . . . . 22 Robot Hit Streak 32 | 6 9 11 8 . 10 12 9 . 3 5 . 7 9 9 32 26 Robot Miss Streak 8 | 3 5 3 1 . 4 4 3 . 2 6 . 6 6 3 6 8 Penetration Max 2 | . . . . . 1 1 . . . . . . 1 . 2 1 Secondary Targets 6 | . . . . . . 1 . . . . . . . . 2 3 Max Gunslinging Chain 1 | . . . . . . 1 . . . . . . . . 1 1 Shots Hit Robots 793 | 21 18 28 22 . 29 121 11 . 6 9 9 37 67 27 270 118 Core Hits 436 | 7 9 28 9 . 13 50 5 . 4 4 3 43 28 8 148 77 Critical Kills 63 | . . . 1 . 1 4 2 . 3 . . 4 5 . 43 . Critical Parts Destroyed 66 | . . . . . . 6 3 . 2 3 . 4 5 . 42 1 Critical Strikes 168 | . . . 1 . 1 13 7 . 5 3 . 8 11 3 110 6 Burn 2 | . . . . . . . . . . . . . . . . 2 Meltdown 3 | . . . . . . . 1 . . . . . 2 . . . Destroy 136 | . . . 1 . 1 13 6 . 5 3 . 8 8 . 90 1 Blast 27 | . . . . . . . . . . . . . 1 3 20 3 Melee Attacks 54 | . . . . . . 42 3 . . . 9 . . . . . Impact . | . . . . . . . . . . . . . . . . . Slashing 54 | . . . . . . 42 3 . . . 9 . . . . . Piercing . | . . . . . . . . . . . . . . . . . Sneak Attacks 3 | . . . . . . 3 . . . . . . . . . . Combat Hostiles . | . . . . . . . . . . . . . . . . . Follow-up Attacks . | . . . . . . . . . . . . . . . . . Damage Inflicted 28229 | 301 430 1037 357 . 635 3536 407 . 147 250 760 2760 2472 1086 8050 6001 Guns 11028 | 301 260 249 357 . 635 1349 147 . 82 153 . 86 265 . 3742 3402 Cannons 10067 | . . . . . . 1691 260 . 65 97 . 754 1660 1086 3959 495 Explosions 5840 | . 170 788 . . . . . . . . . 1920 547 . 329 2086 Melee 1256 | . . . . . . 496 . . . . 760 . . . . . Ramming 38 | . . . . . . . . . . . . . . . 20 18 Kinetic 15250 | 301 260 249 357 . 635 1626 312 . 147 250 . 343 858 1086 7701 1125 Thermal 6227 | . . . . . . 1414 95 . . . . 497 1423 . . 2798 Explosive 3398 | . 170 788 . . . . . . . . . 1920 191 . 329 . Electromagnetic 2060 | . . . . . . . . . . . . . . . . 2060 Impact . | . . . . . . . . . . . . . . . . . Slashing 1256 | . . . . . . 496 . . . . 760 . . . . . Piercing . | . . . . . . . . . . . . . . . . . Highest Corruption 31 | . . . . . 1 1 1 . . . . . 2 15 27 31 Average Corruption 7 | . . . . . 1 1 1 . . . . . 1 11 21 18 Corruption Purged 4 | . . . . . . . . . . . . . . . 4 . Corruption Blocked . | . . . . . . . . . . . . . . . . . Effects 173 | . . . . . 6 30 3 . . . . . 3 2 116 13 Message Errors 35 | . . . . . 2 10 . . . . . . . 1 18 4 Matter Fused 28 | . . . . . 1 8 . . . . . . 2 . 16 1 Heat Flow Errors 15 | . . . . . . 3 . . . . . . . . 11 1 Energy Discharges 18 | . . . . . . 1 2 . . . . . 1 . 12 2 Parts Rejected 3 | . . . . . . . . . . . . . . . 3 . Parts Fused 2 | . . . . . . . . . . . . . . . 2 . Data Loss (minor) 17 | . . . . . 1 1 . . . . . . . 1 13 1 Data Loss (major) 11 | . . . . . . 2 1 . . . . . . . 7 1 Misfires 12 | . . . . . 2 3 . . . . . . . . 7 . Alerts 1 | . . . . . . 1 . . . . . . . . . . Misdirections 4 | . . . . . . . . . . . . . . . 3 1 Weapon Failures 27 | . . . . . . 1 . . . . . . . . 24 2 Overload Shots . | . . . . . . . . . . . . . . . . . Overflow Damage 675 | . . 25 . . . 52 . . . . 141 50 14 99 272 22 Projectiles 354 | . . . . . . 20 . . . . . . 14 99 221 . Explosions 148 | . . 25 . . . . . . . . . 50 . . 51 22 Melee 173 | . . . . . . 32 . . . . 141 . . . . . Knockbacks 58 | . . . . . . . . . 1 . . 3 3 9 37 5 Impact . | . . . . . . . . . . . . . . . . . Kinetic 53 | . . . . . . . . . 1 . . 3 3 9 32 5 Secondary 5 | . . . . . . . . . . . . . . . 5 . Self-Inflicted Damage 507 | . 28 92 . . . . . . . . . 34 94 . 136 123 Shots 14 | . 2 3 . . . . . . . . . 1 2 . 1 5 Rammed 2 | . . . . . . . . . . . . . . . 2 . Targets Rammed 3 | . . . . . . . . . . . . . . . 2 1 Kicked 1 | . . . . . . . . . . . . . . . . 1 Crushed . | . . . . . . . . . . . . . . . . . Highest Temperature 316 | . 12 265 32 . . 218 . . . . . 275 288 . 289 316 Average Temperature 82 | . 5 62 10 . . 65 . . . . . 182 158 . 73 83 Received Heat Transfer 2973 | . 6 432 . . 27 393 . . . 63 . 368 461 12 349 862 Effects 2 | . . . . . . . . . . . . . . . 1 1 Energy Bleed 1 | . . . . . . . . . . . . . . . . 1 Interference 1 | . . . . . . . . . . . . . . . 1 . Siege Activations 16 | . . . . . . . . . . . . . . 1 15 . Total Turns 248 | . . . . . . . . . . . . . . 6 242 . Longest Duration 42 | . . . . . . . . . . . . . . 6 42 . Robots Corrupted 9 | . . . . . . . . . . . . . . . . 9 Combat Hostiles 9 | . . . . . . . . . . . . . . . . 9 Parts Fried 25 | . . . . . . . . . . . . . . . . 25 Impact Corruptions 1 | . . . . . . . . . . . . . . . 1 . Robots Melted 4 | . . . . . . . 1 . . . . . 3 . . . Combat Hostiles 4 | . . . . . . . 1 . . . . . 3 . . . Parts Melted 15 | . . . . . . 1 3 . . . . 2 3 . . 6 Heat Transferred 7117 | . . . . . . 1665 111 . . . . 725 1800 . . 2816 Parts Sabotaged 2 | . . . . . . . . . . . . . . . . 2 Parts Stolen . | . . . . . . . . . . . . . . . . . Parts Stripped . | . . . . . . . . . . . . . . . . . Power Chain Reactions 1 | . . . . . . . . . . . . . . . . 1 Alert | -11 -10 -10 -9 -9 -6 -6 -6 -5 -5 -5 -5 -4 -4 -3 -3 -2 ------- Run | Yrd Mat Sub Rec Scr Fac Ext Cet Fac Upp Upp Zhi Pro Fac Res Tes Res Peak Influence 1835 | 30 141 . 101 . 114 587 502 238 . . . . 487 573 1835 1770 Initial 1100 | . 19 . 81 . . 13 317 238 . . . . 52 255 321 1100 Average 311 | 14 34 . 41 . 37 147 449 238 . . . . 181 323 906 1480 Maximum Alert Level 5 | . . . . . . 2 2 1 . . . . 2 2 5 5 Low Security (%) 63 | 100 100 . 100 . 100 86 . . . . . . 60 3 . . Level 1 11 | . . . . . . 3 12 100 . . . . 35 66 18 . Level 2 12 | . . . . . . 10 87 . . . . . 4 29 26 . Level 3 2 | . . . . . . . . . . . . . . . 20 . Level 4 5 | . . . . . . . . . . . . . . . 22 50 Level 5 2 | . . . . . . . . . . . . . . . 10 9 High Security 2 | . . . . . . . . . . . . . . . 1 39 Max Security . | . . . . . . . . . . . . . . . . . Squads Dispatched 47 | . 1 . . . 4 . . 1 . . . 1 4 3 20 13 Investigation 6 | . 1 . . . 2 . . . . . . . . 2 1 . Extermination 10 | . . . . . 2 . . 1 . . . . 1 1 3 2 Reinforcement 13 | . . . . . . . . . . . . . 3 . 10 . Assault 15 | . . . . . . . . . . . . 1 . . 3 11 Garrison 3 | . . . . . . . . . . . . . . . 3 . Intercept . | . . . . . . . . . . . . . . . . . Searches Triggered . | . . . . . . . . . . . . . . . . . Construction Impeded 1 | . . . . . . . . . . . . . . . 1 . Haulers Reinforced 2 | . . . . . . . . . . . . . 1 . 1 . Active Scanning Responses . | . . . . . . . . . . . . . . . . . Cargo Convoy Interrupts . | . . . . . . . . . . . . . . . . . Stealth | -11 -10 -10 -9 -9 -6 -6 -6 -5 -5 -5 -5 -4 -4 -3 -3 -2 --------- Run | Yrd Mat Sub Rec Scr Fac Ext Cet Fac Upp Upp Zhi Pro Fac Res Tes Res Distress Signals 11 | . . . . . . 5 2 . . . . . . . 1 3 Communications Jammed 46 | . . . . . . . . . . . . . 19 . 22 5 Distress Signals 28 | . . . . . . . . . . . . . 3 . 20 5 Times Spotted 305 | . 12 13 . . 7 45 9 . 6 10 . 25 24 10 82 62 Peak Tracking Total 14 | . 3 6 . . 3 5 5 1 2 3 . 7 4 3 9 14 Tactical Retreats 15 | . . 1 . . 1 6 . . . . . 1 3 . 2 1 Traps | -11 -10 -10 -9 -9 -6 -6 -6 -5 -5 -5 -5 -4 -4 -3 -3 -2 ------- Run | Yrd Mat Sub Rec Scr Fac Ext Cet Fac Upp Upp Zhi Pro Fac Res Tes Res Traps Triggered 6 | . 1 . . . . 1 . . . . . . . . 3 1 Indirectly 1 | . . . . . . . . . . . . . . . . 1 Trap Hack Attempts . | . . . . . . . . . . . . . . . . . Triggered . | . . . . . . . . . . . . . . . . . Disarmed 5 | . 5 . . . . . . . . . . . . . . . Reprogrammed . | . . . . . . . . . . . . . . . . . Reused . | . . . . . . . . . . . . . . . . . Traps Extracted . | . . . . . . . . . . . . . . . . . Installed . | . . . . . . . . . . . . . . . . . Triggered 6 | . . . . . . . . . . 6 . . . . . . Machines | -11 -10 -10 -9 -9 -6 -6 -6 -5 -5 -5 -5 -4 -4 -3 -3 -2 ---------- Run | Yrd Mat Sub Rec Scr Fac Ext Cet Fac Upp Upp Zhi Pro Fac Res Tes Res Machines Disabled 61 | . . 5 . . 2 9 2 . . 2 . 1 12 1 21 6 Max in Single Turn 10 | . . 1 . . 1 3 1 . . 1 . 1 10 1 2 2 Garrison Access 1 | . . . . . . . . . . . . . . . . 1 Energy Cycler 6 | . . . . . . 6 . . . . . . . . . . Machines Repaired . | . . . . . . . . . . . . . . . . . Machines Dismantled . | . . . . . . . . . . . . . . . . . Machines Sabotaged . | . . . . . . . . . . . . . . . . . Overloaded Fab Kills . | . . . . . . . . . . . . . . . . . Hacking | -11 -10 -10 -9 -9 -6 -6 -6 -5 -5 -5 -5 -4 -4 -3 -3 -2 --------- Run | Yrd Mat Sub Rec Scr Fac Ext Cet Fac Upp Upp Zhi Pro Fac Res Tes Res Machines Accessed 62 | . 9 1 8 5 5 14 1 . . . 6 . . 4 8 1 Terminals 36 | . 7 . 4 . 2 13 1 . . . . . . 2 6 1 Fabricators 2 | . . . . . 1 . . . . . . . . 1 . . Repair Stations 1 | . . . . . 1 . . . . . . . . . . . Recycling Units 8 | . 2 . 4 . . 1 . . . . . . . 1 . . Scanalyzers 3 | . . . . . 1 . . . . . . . . . 2 . Garrison Access . | . . . . . . . . . . . . . . . . . Total Hacks 167 | . 27 1 22 26 16 28 1 . . . 19 . . 8 18 1 Successful 100 | . 19 1 13 26 7 6 1 . . . 19 . . 2 6 . Failed 67 | . 8 . 9 . 9 22 . . . . . . . 6 12 1 Catastrophic 14 | . 1 . 1 . 2 6 . . . . . . . . 3 1 Database Lockouts . | . . . . . . . . . . . . . . . . . Manual 38 | . 15 . 15 . 5 1 . . . . . . . 1 1 . Terminals 81 | . 19 . 15 . 5 27 1 . . . . . . 4 9 1 Fabricators 6 | . . . . . 3 . . . . . . . . 3 . . Repair Stations 6 | . . . . . 6 . . . . . . . . . . . Recycling Units 17 | . 8 . 7 . . 1 . . . . . . . 1 . . Scanalyzers 11 | . . . . . 2 . . . . . . . . . 9 . Garrison Access . | . . . . . . . . . . . . . . . . . Terminal Hacks 72 | . 10 1 7 26 1 6 1 . . . 19 . . . 1 . Record 25 | . . . . 18 . . . . . . 7 . . . . . Part Schematic 4 | . . . . . . . . . . . 4 . . . . . Robot Analysis 15 | . 3 . 1 7 . . . . . . 4 . . . . . Prototype ID Bank 7 | . 3 . . . . . . . . . 4 . . . . . Open Door 6 | . . . . . . 4 1 . . . . . . . 1 . Branch Access Points 1 | . . . . . 1 . . . . . . . . . . . Repair Station Index 1 | . . . 1 . . . . . . . . . . . . . Recycling Unit Index 1 | . . . 1 . . . . . . . . . . . . . Alert Level 1 | . . . 1 . . . . . . . . . . . . . Locate Traps 3 | . 2 . . . . 1 . . . . . . . . . . Disarm Traps 1 | . 1 . . . . . . . . . . . . . . . Zone Layout 5 | . 1 . 3 . . 1 . . . . . . . . . . Derelict Proto ID Bank 2 | . . 1 . 1 . . . . . . . . . . . . Fabricator Hacks 1 | . . . . . . . . . . . . . . 1 . . Build 1 | . . . . . . . . . . . . . . 1 . . Repair Station Hacks 4 | . . . . . 4 . . . . . . . . . . . Scan Component 3 | . . . . . 3 . . . . . . . . . . . Repair 1 | . . . . . 1 . . . . . . . . . . . Recycling Unit Hacks 5 | . 3 . 2 . . . . . . . . . . . . . Report Inventory 3 | . 2 . 1 . . . . . . . . . . . . . Retrieve Components 2 | . 1 . 1 . . . . . . . . . . . . . Scanalyzer 5 | . . . . . . . . . . . . . . . 5 . Insert Component 3 | . . . . . . . . . . . . . . . 3 . Analyze 2 | . . . . . . . . . . . . . . . 2 . Garrison Access Hacks . | . . . . . . . . . . . . . . . . . Unauthorized Hacks 13 | . 6 . 4 . 2 . . . . . . . . 1 . . Terminals 3 | . 2 . . . 1 . . . . . . . . . . . Assimilate 1 | . 1 . . . . . . . . . . . . . . . Botnet 2 | . 1 . . . 1 . . . . . . . . . . . Fabricators 1 | . . . . . 1 . . . . . . . . . . . Fabnet 1 | . . . . . 1 . . . . . . . . . . . Repair Stations 1 | . . . . . . . . . . . . . . 1 . . Recycling Units 8 | . 4 . 4 . . . . . . . . . . . . . Reject 1 | . 1 . . . . . . . . . . . . . . . Mask 2 | . 2 . . . . . . . . . . . . . . . Tunnel 5 | . 1 . 4 . . . . . . . . . . . . . Scrapoids 1 | . . . . . . . . . . . . . . 1 . . Scanalyzers . | . . . . . . . . . . . . . . . . . Garrison Access . | . . . . . . . . . . . . . . . . . Data Cores Recovered . | . . . . . . . . . . . . . . . . . Used . | . . . . . . . . . . . . . . . . . Hacking Detections 41 | . 9 . 4 . 5 11 1 . . . . . . 3 7 1 Full Trace Events 5 | . . . 1 . 2 . . . . . . . . 1 1 . Feedback Events . | . . . . . . . . . . . . . . . . . Feedback Blocked . | . . . . . . . . . . . . . . . . . Robot Schematics Acquired 7 | . . . . . . . . . . . . . . . 7 . Robots Built . | . . . . . . . . . . . . . . . . . Authchips . | . . . . . . . . . . . . . . . . . Time . | . . . . . . . . . . . . . . . . . Total Robot Build Rating . | . . . . . . . . . . . . . . . . . Part Schematics Acquired 19 | . . . . . . . . . . . 4 . . . 15 . Parts Built 1 | . . . . . . . . . . . . . . 1 . . Authchips . | . . . . . . . . . . . . . . . . . Time 69 | . . . . . . . . . . . . . . 69 . . Total Part Build Rating 9 | . . . . . . . . . . . . . . 9 . . Parts Repaired 1 | . . . . . 1 . . . . . . . . . . . Time 50 | . . . . . 50 . . . . . . . . . . . Parts Recycled . | . . . . . . . . . . . . . . . . . Recycled Matter . | . . . . . . . . . . . . . . . . . Retrieved Matter . | . . . . . . . . . . . . . . . . . Retrieved Components 11 | . 9 . 2 . . . . . . . . . . . . . Parts Scanalyzed 2 | . . . . . . . . . . . . . . . 2 . Part Schematics Acquired . | . . . . . . . . . . . . . . . . . Parts Damaged 1 | . . . . . . . . . . . . . . . 1 . Bothacking | -11 -10 -10 -9 -9 -6 -6 -6 -5 -5 -5 -5 -4 -4 -3 -3 -2 ------------ Run | Yrd Mat Sub Rec Scr Fac Ext Cet Fac Upp Upp Zhi Pro Fac Res Tes Res Used RIF Installer . | . . . . . . . . . . . . . . . . . Robots Hacked 2 | . . . . . . . . . 1 1 . . . . . . Non-combat . | . . . . . . . . . . . . . . . . . Combat 2 | . . . . . . . . . 1 1 . . . . . . Robot Hacks Applied . | . . . . . . . . . . . . . . . . . Relay Couplers Released 2 | . . . . . . . . . . . . . . . . 2 Machine Destruction 2 | . . . . . . . . . . . . . . . . 2 Fabnet Peak Effective % 3 | . . . . . . . . 3 3 3 3 1 1 . . . Autooverrided 2 | . . . . . . . . . 1 1 . . . . . . Robots Rewired 19 | . . . . . . 14 . . . 2 . 2 . . 1 . Allies Hacked . | . . . . . . . . . . . . . . . . . Hacks Repelled . | . . . . . . . . . . . . . . . . . Allies | -11 -10 -10 -9 -9 -6 -6 -6 -5 -5 -5 -5 -4 -4 -3 -3 -2 -------- Run | Yrd Mat Sub Rec Scr Fac Ext Cet Fac Upp Upp Zhi Pro Fac Res Tes Res Total Allies 36 | . 1 . . . . 23 . . 1 3 . 2 . 5 1 . Largest Group 12 | . 1 1 1 1 1 12 11 7 5 4 3 3 2 5 1 . Highest-Rated Group 432 | . 10 10 10 10 10 432 393 232 139 121 72 96 89 320 148 . Highest-Rated Ally 148 | . 10 10 10 10 10 50 47 47 47 49 30 49 49 64 148 . Total Orders 9 | . . . . . . . . . . . . 2 . . 2 5 STAY 1 | . . . . . . . . . . . . . . . 1 . FOLLOW 1 | . . . . . . . . . . . . . . . 1 . EXPLORE 6 | . . . . . . . . . . . . 1 . . . 5 RETURN 1 | . . . . . . . . . . . . 1 . . . . Ally Attacks 351 | . . . . . . 112 62 . 16 33 . 32 16 70 10 . Total Damage 7753 | . . . . . . 1922 1354 . 280 771 . 962 383 1547 534 . Kills 54 | . . . . . . 15 7 . 4 5 . 6 3 9 5 . Allies Corrupted 1 | . . . . . . . . . . . . . . . 1 . Allies Melted 1 | . . . . . . . . . . 1 . . . . . . Intel | -11 -10 -10 -9 -9 -6 -6 -6 -5 -5 -5 -5 -4 -4 -3 -3 -2 ------- Run | Yrd Mat Sub Rec Scr Fac Ext Cet Fac Upp Upp Zhi Pro Fac Res Tes Res Robot Analysis Total 15 | . 3 . 1 7 . . . . . . 4 . . . . . Derelict Logs Recovered 6 | . . . . . . . . . 3 2 . 1 . . . . Drone Launches 7 | . . . . . . . . . . . . 2 . . . 5 Drone Recoveries 6 | . . . . . . . . . . . . 2 . . . 4 Exploration | -11 -10 -10 -9 -9 -6 -6 -6 -5 -5 -5 -5 -4 -4 -3 -3 -2 ------------- Run | Yrd Mat Sub Rec Scr Fac Ext Cet Fac Upp Upp Zhi Pro Fac Res Tes Res Turns Passed 27492 | 109 1738 3229 1543 6115 1133 3966 518 265 1526 1506 340 1311 945 611 1963 674 Spaces Moved 13098 | 43 1190 1249 624 2818 406 1937 315 135 932 912 191 600 458 263 766 259 Core 4 | . . . . 1 . . . . . . . . . . . 3 Treads 9682 | . 15 1249 624 2683 406 554 . 135 932 912 191 600 429 263 689 . Legs 732 | 43 356 . . . . . . . . . . . . . 77 256 Wheels 2680 | . 819 . . 134 . 1383 315 . . . . . 29 . . . Hover . | . . . . . . . . . . . . . . . . . Flight . | . . . . . . . . . . . . . . . . . Fastest Speed 50 | 120 115 240 240 115 240 130 130 160 160 160 160 160 160 160 100 50 Average Speed 180 | 120 118 240 240 213 240 162 143 160 160 160 160 160 160 165 160 121 Slowest Speed 800 | 120 240 240 240 800 240 320 145 160 160 160 160 160 160 237 250 190 Overloaded Moves . | . . . . . . . . . . . . . . . . . Propulsion Burnouts . | . . . . . . . . . . . . . . . . . Robots Hopped . | . . . . . . . . . . . . . . . . . Cave-ins Triggered . | . . . . . . . . . . . . . . . . . Teleports 1 | . . . . . . . . . . . . . . . . 1 Exploration Rate (%) 55 | 4 98 39 67 94 10 86 88 4 98 93 62 98 9 9 74 7 Regions Visited 16 Branch Regions 10 Pre-discovered Areas 11 | . 1 . 4 . . . . . 2 1 3 . . . . . Known Exits Taken 9 | . . . . . 1 . . 1 1 1 1 1 1 1 1 . Unknown Exits Taken 7 | 1 1 1 1 1 . 1 1 . . . . . . . . . Scrap Searched 27 | . . 4 . 10 . . . . 4 4 . 5 . . . . Spaces Dug 34 | . . 28 . . . . . . . . . . . . 6 . Terrain Destroyed 597 | . 25 94 . . 1 47 3 . 4 8 . 181 72 15 113 34 Melee . | . . . . . . . . . . . . . . . . . Projectile 197 | . . . . . 1 6 3 . 4 8 . 20 23 15 88 29 AOE 392 | . 25 94 . . . 41 . . . . . 161 49 . 17 5 Terrain Rammed . | . . . . . . . . . . . . . . . . . Walls Destroyed . | . . . . . . . . . . . . . . . . . Machines Disabled . | . . . . . . . . . . . . . . . . . Actions | -11 -10 -10 -9 -9 -6 -6 -6 -5 -5 -5 -5 -4 -4 -3 -3 -2 --------- Run | Yrd Mat Sub Rec Scr Fac Ext Cet Fac Upp Upp Zhi Pro Fac Res Tes Res Total 15788 | 64 1485 1409 648 2927 519 2530 354 186 955 938 209 880 570 403 1225 486 Wait 1115 | . 225 73 . 63 63 173 . 25 15 . . 197 23 97 145 16 Move 13082 | 42 1189 1248 623 2817 405 1936 314 134 931 911 190 599 457 262 765 259 Hop . | . . . . . . . . . . . . . . . . . Pick Up 198 | 2 22 4 3 9 19 36 5 10 1 3 4 5 11 6 29 29 Fast Attach 34 | . 3 1 1 11 . 1 1 . . . . 1 2 2 11 . Attach 104 | 1 . 1 . 2 7 23 2 3 . . . 4 7 4 22 28 Detach 3 | . . . . 1 . 1 . . . . . . . . . 1 Swap 129 | 1 11 23 1 6 1 20 8 6 1 3 2 12 6 4 14 10 Drop 128 | . 12 5 5 18 . 18 10 8 1 3 4 5 8 9 14 8 Fire 682 | 18 23 54 15 . 24 85 11 . 6 11 . 43 56 19 218 99 Melee 54 | . . . . . . 42 3 . . . 9 . . . . . Ram . | . . . . . . . . . . . . . . . . . Kick 1 | . . . . . . . . . . . . . . . . 1 Crush 2 | . . . . . . . . . . . . . . . 2 . Escape Stasis 37 | . . . . . . 2 . . . . . . . . . 35 Rewire 218 | . . . . . . 193 . . . 6 . 14 . . 5 . Trap . | . . . . . . . . . . . . . . . . . Miscellaneous 1 | . . . . . . . . . . 1 . . . . . . Route ------- -11/Scrapyard -10/Materials (discovered 6 exits: [*Mat x3] / [*Min x2] / *Sub) -10/Subcaves (discovered 3 exits: [*Mat x2] / *Rec) -9/Recycling (discovered 2 exits: [*Fac] / *Scr) -9/Scraptown (discovered 2 exits: *Fac x2) -6/Factory (discovered 4 exits: *Low x2 / *Ext x2) -6/Extension (discovered 3 exits: [*Fac x2] / *Cet) -6/Cetus (discovered 2 exits: [*Fac] / [*Arc]) -5/Factory -5/Upper Caves -5/Upper Caves (discovered 2 exits: *Fac / *Zhi) -5/Zhirov -4/Proximity Caves -4/Factory (discovered 2 exits: *Res x2) -3/Research (discovered 3 exits: Res x2 / *Tes) -3/Testing -2/Research History --------- Turn | Location | Event 21 | -11/Scrapyard | Discovered new exit (range 3) 110 | -11/Scrapyard | Entered Materials 159 | -10/Materials | Discovered new exit (range 16) 302 | -10/Materials | Build established: Mutant 307 | -10/Materials | Discovered new exit (range 11) 673 | -10/Materials | Discovered new exit (range 13) 1287 | -10/Materials | Discovered new exit (range 13) 1481 | -10/Materials | Discovered new exit (range 12) 1813 | -10/Materials | Discovered new exit (range 4) 1848 | -10/Materials | Entered Subcaves 1848 | -10/Subcaves | Accompanied by 1 ally 1939 | -10/Subcaves | Shifting Twisted Machinery released Mak. Thermal Plating 1940 | -10/Subcaves | Shifting Twisted Machinery released Sub. Power Source 2257 | -10/Subcaves | Shifting Twisted Machinery released Sub. Beam Cannon 2259 | -10/Subcaves | Shifting Twisted Machinery released Battle Cannon 2386 | -10/Subcaves | Discovered new exit (range 9) 2556 | -10/Subcaves | A swath of the cavern ceiling suddenly collapsed 2617 | -10/Subcaves | Discovered new exit (range 10) 3058 | -10/Subcaves | Visited 4L-MR0's lab 3284 | -10/Subcaves | Found Tower Shield 4949 | -10/Subcaves | Discovered new exit (range 12) 5077 | -10/Subcaves | Entered Recycling 5077 | -9/Recycling | Accompanied by 1 ally 5423 | -9/Recycling | Discovered new exit (range 5) 6024 | -9/Recycling | Scanned before Scraplab entrance 6545 | -9/Recycling | Entered Scraplab 6564 | -9/Recycling | Discovered new exit (range 4) 6620 | -9/Recycling | Entered Scraptown 6620 | -9/Scraptown | Accompanied by 1 ally 6666 | -9/Scraptown | Heard Great Nut preacher, LISTEN AND RECITE! 7264 | -9/Scraptown | Visited Assassins FH 7401 | -9/Scraptown | Visited UFD Registry 7401 | -9/Scraptown | Registered with UFD as "Steelsourcer" 7430 | -9/Scraptown | Visited Fellowship of the Rings 7598 | -9/Scraptown | Visited Bundlers 7871 | -9/Scraptown | Visited TADAMA 8279 | -9/Scraptown | Visited Junk Repository 8567 | -9/Scraptown | Discovered new exit (range 5) 8867 | -9/Scraptown | Visited Cave Peace 9102 | -9/Scraptown | Visited Junk Repository 9169 | -9/Scraptown | Visited DA-N13 Charitable Foundation 9186 | -9/Scraptown | Found DCF Scrap (27 items) 9261 | -9/Scraptown | Visited Scrapoid Pod Storage 9311 | -9/Scraptown | Visited Analyses Database 9417 | -9/Scraptown | Visited Derelict Rescue Squad 9481 | -9/Scraptown | Visited A0-MCA Data Center 9526 | -9/Scraptown | Visited Science Guys 9690 | -9/Scraptown | Visited LU-1G1's Boring Crew 9748 | -9/Scraptown | Visited Observation Area 10566 | -9/Scraptown | Discovered new exit (range 3) 10914 | -9/Scraptown | Attached Tower Shield, gained temporary slots: Power, Propulsion x2, Utility x2, Weapon x2 11728 | -9/Scraptown | Given an A rating by A0-MCA 11770 | -9/Scraptown | Found A0-MCA's Component Scanner 12076 | -9/Scraptown | Found Scrapoid Pod 12257 | -9/Scraptown | Found DRS Beacon 12735 | -9/Scraptown | Entered Factory 12735 | -6/Factory | Accompanied by 1 ally 12735 | -6/Factory | Evolved 8 slots: Propulsion x1, Utility x7 12886 | -6/Factory | Repaired Imp. Medium Treads 13300 | -6/Factory | Discovered new exit (range 15) 13358 | -6/Factory | Identified exit to Lower Caves 13358 | -6/Factory | Identified exit to Extension 13868 | -6/Factory | Entered Extension 14220 | -6/Extension | Rescued a captive Derelict 14342 | -6/Extension | Rescued a captive Derelict 14368 | -6/Extension | Lost 4 allies 14484 | -6/Extension | Build established: Scavenger-Mutant 14503 | -6/Extension | Spotted B-75 Beast 14520 | -6/Extension | Spotted B-75 Beast 14545 | -6/Extension | Lost 4 allies 14587 | -6/Extension | Destroyed B-75 Beast 14616 | -6/Extension | Lost 7 parts (2n4u1w) 14667 | -6/Extension | Destroyed B-75 Beast 14814 | -6/Extension | Build established: Mutant 14918 | -6/Extension | Disrupted transfer network 15039 | -6/Extension | Discovered new exit (range 3) 15125 | -6/Extension | Build established: Scavenger-Mutant 15134 | -6/Extension | Rescued a captive Derelict 15143 | -6/Extension | Rescued a captive Derelict 15733 | -6/Extension | Scrapoid Pod released 06E05-D (x5) 15847 | -6/Extension | Found Launcher Loader 16384 | -6/Extension | Build established: Commander-Mutant 16844 | -6/Extension | Discovered new exit (range 10) 16845 | -6/Extension | Discovered new exit (range 6) 17246 | -6/Extension | Energy Cycler disabled 17246 | -6/Extension | Rescued a captive Derelict 17687 | -6/Extension | Found Med. Regenerative Plating 17834 | -6/Extension | Entered Cetus 17834 | -6/Cetus | Accompanied by 11 allies 17855 | -6/Cetus | Spotted Cetus Guard 17855 | -6/Cetus | Spotted Cetus Guard 17857 | -6/Cetus | Spotted Cetus Guard 17857 | -6/Cetus | Spotted Cetus Guard 17859 | -6/Cetus | Allies destroyed Cetus Guard 17864 | -6/Cetus | Allies destroyed Cetus Guard 17864 | -6/Cetus | Destroyed Cetus Guard 17867 | -6/Cetus | Destroyed Cetus Guard 18172 | -6/Cetus | Cetus Manufacturing Module disabled 18205 | -6/Cetus | Discovered new exit (range 16) 18247 | -6/Cetus | Spotted Cetus Guard 18248 | -6/Cetus | Spotted Cetus Guard 18256 | -6/Cetus | Spotted Cetus Guard 18256 | -6/Cetus | Spotted Cetus Guard 18258 | -6/Cetus | Allies destroyed Cetus Guard 18258 | -6/Cetus | Allies destroyed Cetus Guard 18260 | -6/Cetus | Destroyed Cetus Guard 18271 | -6/Cetus | Allies destroyed Cetus Guard 18277 | -6/Cetus | Discovered new exit (range 16) 18284 | -6/Cetus | Met Revision 17 18352 | -6/Cetus | Entered Factory 18352 | -5/Factory | Accompanied by 7 allies 18352 | -5/Factory | Evolved 2 slots: Power x1, Propulsion x1 18552 | -5/Factory | Discovered new exit (range 5) 18559 | -5/Factory | Identified exit to Upper Caves 18617 | -5/Factory | Entered Upper Caves 18617 | -5/Upper Caves | Accompanied by 5 allies 18651 | -5/Upper Caves | Build established: Scavenger-Mutant 18757 | -5/Upper Caves | Lost 3 allies 18859 | -5/Upper Caves | Identified exit to Upper Caves 18879 | -5/Upper Caves | Attracted the attention of an 0b10 checkpoint 19158 | -5/Upper Caves | Learned location of Warlord (-4) 20143 | -5/Upper Caves | Entered another Upper Caves area 20143 | -5/Upper Caves | Accompanied by 3 allies 20144 | -5/Upper Caves | Activated DRS Beacon 20145 | -5/Upper Caves | Attracted the attention of an 0b10 checkpoint 20224 | -5/Upper Caves | Learned location of 1 exit from Factory 20375 | -5/Upper Caves | Discovered new exit (range 16) 21103 | -5/Upper Caves | Discovered new exit (range 14) 21186 | -5/Upper Caves | Attacked by a delusional Derelict stockpiling parts 21270 | -5/Upper Caves | Identified exit to Zhirov 21649 | -5/Upper Caves | Entered Zhirov 21649 | -5/Zhirov | Accompanied by 3 allies 21649 | -5/Zhirov | Discovered new exit (range 3) 21713 | -5/Zhirov | Learned location of Quarantine (-2) 21713 | -5/Zhirov | Learned location of Command (-1) 21805 | -5/Zhirov | Found Alien Artifact 21824 | -5/Zhirov | Found Alien Artifact 21983 | -5/Zhirov | Identified exit to Proximity Caves 21989 | -5/Zhirov | Entered Proximity Caves 21989 | -4/Proximity Caves | Accompanied by 3 allies 22124 | -4/Proximity Caves | Lost 3 allies 22331 | -4/Proximity Caves | Attracted the attention of an 0b10 outpost 22388 | -4/Proximity Caves | Destroyed 7 combat bots 22551 | -4/Proximity Caves | Learned location of 2 exits from Research 22995 | -4/Proximity Caves | Discovered new exit (range 89) 23249 | -4/Proximity Caves | Identified Integrated Dissipator 23249 | -4/Proximity Caves | Installed Integrated Dissipator, increased core heat dissipation (+20) 23296 | -4/Proximity Caves | Identified exit to Factory 23300 | -4/Proximity Caves | Entered Factory 23300 | -4/Factory | Accompanied by 2 allies 23300 | -4/Factory | Evolved 2 slots: Utility x2 23301 | -4/Factory | Identified exit to Research 23998 | -4/Factory | Found Quantum Capacitor 24128 | -4/Factory | Discovered exit to Research (range 9) 24245 | -4/Factory | Entered Research 24245 | -3/Research | Evolved 2 slots: Power x1, Propulsion x1 24246 | -3/Research | Identified exit to Research 24524 | -3/Research | Fabricated Adv. Heavy Siege Treads (x1) 24656 | -3/Research | Scrapoid reinforcements arrived 24737 | -3/Research | Discovered new exit (range 12) 24785 | -3/Research | Lost 4 allies 24798 | -3/Research | System corruption reached 10% 24854 | -3/Research | Identified exit to Testing 24856 | -3/Research | Entered Testing 25217 | -3/Testing | Found Hyp. EM Gauss Rifle 25234 | -3/Testing | Lost 4 parts (2p2u) 25398 | -3/Testing | Found Hyp. Multirail 25450 | -3/Testing | Scanned by Researcher 25515 | -3/Testing | Spotted PH-BZZW6ND93Y 25525 | -3/Testing | Rewired PH-BZZW6ND93Y 25593 | -3/Testing | Found Com. Tesla Bomb Launcher 25696 | -3/Testing | Spotted Striker 25856 | -3/Testing | First assault squad dispatched 25945 | -3/Testing | Found Exp. Hardlight Generator 26168 | -3/Testing | Destroyed 8 combat bots 26295 | -3/Testing | Garrison activated, responded to threat 26556 | -3/Testing | Lost 3 parts (2n1w) 26601 | -3/Testing | Found Myomer Exoskeleton 26611 | -3/Testing | Discovered exit to Research (range 14) 26693 | -3/Testing | Lost 6 parts (1p1n3u1w) 26763 | -3/Testing | Found SHELL Armor 26769 | -3/Testing | Found Med. Regenerative Plating 26797 | -3/Testing | High security lockdown imminent 26819 | -3/Testing | Entered Research 26819 | -2/Research | Evolved 2 slots: Utility x2 27103 | -2/Research | First assault squad dispatched 27226 | -2/Research | High security lockdown imminent 27267 | -2/Research | Lost 4 parts (1p2u1w) 27276 | -2/Research | System corruption reached 10% 27306 | -2/Research | High security lockdown engaged 27361 | -2/Research | Destroyed 8 combat bots 27364 | -2/Research | Lost 11 parts (2p1n6u2w) 27391 | -2/Research | Identified Transdimensional Reconstructor 27391 | -2/Research | Warped through subspace 27421 | -2/Research | Lost 5 parts (2p1n2u) 27453 | -2/Research | Spotted Investigator 27457 | -2/Research | System corruption reached 30% 27457 | -2/Research | Released all parts (10) 27466 | -2/Research | Core integrity fell below 50% 27487 | -2/Research | Core integrity fell below 20% 27493 | -2/Research | Destroyed by G-73 Enforcer with Phase Gun Last Messages --------------- 27484_ Stasis bubble strength at 32. 27485_ Stasis bubble strength at 26. 27486_ Held in stasis. 27486_ Investigator is analyzing... 27486_ Stasis bubble strength at 20. 27487_ Stasis bubble strength at 14. 27488_ Stasis bubble strength at 8. 27489_ Held in stasis. 27489_ Investigator is analyzing... 27489_ Stasis bubble strength at 2. 27490_ System corrupted: Energy discharge (-23). 27490_ Stasis bubble bursts. 27492_ Investigator stasis bubble strength at 191. 27492_ B-74 Champion stasis bubble strength at 170. 27493_ Investigator stasis bubble strength at 182. 27493_ B-74 Champion stasis bubble strength at 140. Map ----- +----------------------------------------------------+ | ?????????????????????????????????????????????????? | | ?????????????????????????????????????????????????? | | ?????????????????????????????????????????????????? | | ?????????????????????????????????????????????????? | | ?????????????????????????????????????????????????? | | ???#?????????????????????????????????????????????? | | ? #????????????????#????????????????????????????? | | ^^ #???????????????? ????????????????????????????? | | #???????????????? ????????????????????????????? | | #???????????????? ????????????????????????????? | | #?? ????????????? ????????????????????????????? | | + ????????????? ????????????????????????????? | | #?###???????????? ????????????????????????????? | | ##???#%!#######????? ????????????????????????????? | | ?????# #????# #???????????????????????????? | | ?????# #????# #???????????????????????????? | | ?????# """ ###### #?????????????#?????????????? | | ?????# G # ## #???????????? #?????????????? | | ?????# #! ## #???????????? #?????????????? | | ?????# ! # =## #?????####+## #?????????????? | | ?????# #!|!## #?????#%## #?????????????? | | ?????# #==[## #?#####+## #?????????????? | | ?????# % !#=%[## #?#==*g%[# #?????????????? | | ?????#/#"##/##%[%[=#[###!!!bc!# #?????????????? | | ?????# % [ %%[=*/==%%% #]=%ggg# #?????????????? | | ###### !!%[%!!=[%[ "#|@]g/!+ #?????????????? | | = !![==%[ ##]!=g% # ####?????????????? | | [[=[=== ## =[ # #????????????????? | | !!%*= "######## #????????????????? | | ######### ! "###### #??????????????? | | ####????# !%*[ #??????????????? | | #????# |=%* ??????????? | | ###### #"#"#" =! ##?????????????? | | + # ######"####### #??????????????? | | ###########+######??? ?????##+###??????????????? | | ?????+ #??? ????????????????????????? | | ?????# ! #??? """"??????????????????????? | | ?????# #??? """"#?????????????????????? | | ?????# #??? """"#?????????????????????? | | ?????# #??? """"#?????????????????????? | | ?????# """ """ #??? ????????????????????????? | | ?????# """T""" #??? ?????????????????????????? | | ?????#############???###?????????????????????????? | | | | | | | | | | | | | | | +----------------------------------------------------+ Best States ------------- Heat Dissipation 135 Energy Generation 65 Energy Capacity 850 Matter Stores 300 Matter Capacity 300 Sight Range 16 Terrain Scan Range 24 Terrain Scan Density 10 Jamming Range 16 Power Amplification 20 Additional Mass Support 6 Base Temperature (-) 150 Armor Coverage 2450 Resistance: KI 20 Resistance: TH 30 Resistance: EM 20 Propulsion Shielding 33 Weapon Cycling 25 Phase Shifting 10 Evasion (%) 65 Launcher Accuracy 40 Target Analysis 8 Recoil Reduction 5 Matter Filtering 50 Kinecelleration 40 Force Boost 20 Item Schematics ----------------- Assault Drone Bay | -5/Zhirov | Free Exp. Heat Sink | -5/Zhirov | Free Exp. Optical Array | -5/Zhirov | Free Imp. Arc Thrower | -5/Zhirov | Free Adv. Thermal Defense Suite | -3/Testing | Archive Tactical Quantum Warhead | -3/Testing | Archive Hvy. Tesla Rifle | -3/Testing | Archive Prc. Energy Filter | -3/Testing | Archive Exp. EM Disruption Field | -3/Testing | Archive Exp. Terrain Scanner | -3/Testing | Archive Adv. KE Penetrator | -3/Testing | Archive Gravity Neutralizer | -3/Testing | Archive Hvy. Antimatter Reactor | -3/Testing | Archive Prc. Matter Filter | -3/Testing | Archive Electron Diverter | -3/Testing | Archive Adv. Plasma Rifle | -3/Testing | Archive Imp. Energy Mantle | -3/Testing | Archive Adv. Matter Compressor | -3/Testing | Archive Adv. Myomer Leg | -3/Testing | Archive Robot Schematics ------------------ T-07 Excavator | -3/Testing | Archive S-43 Plague | -3/Testing | Archive A-02 Transporter | -3/Testing | Archive R-10 Processor | -3/Testing | Archive Y-72 Warden | -3/Testing | Archive B-74 Champion | -3/Testing | Archive A-27 Freighter | -3/Testing | Archive Fabricated ------------ Adv. Heavy Siege Treads | x1 | -3/Research | Preloaded Alien Tech Used ----------------- Integrated Dissipator Transdimensional Reconstructor Achievements -------------- None Challenges ------------ None Game ------ Seed PoweredPulseStreamer Manual? 0 Play Time 04:27:38 Cumulative 247.9 hours Start 2024.08.28 @ 14:32:04 End 2024.08.29 @ 01:02:03 Sessions 3 Manual Loads 0 Difficulty Rogue Special Mode None Game No. 182 Rogue 172 Adventurer 0 Explorer 10 Win Type - Total 3 Types 3/0/0/0/0/0/0/0/0 Lore% 62 Gallery% 69 Achievement% 53 Wizard Run 0 Options --------- Layout 1 ASCII 0 Keyboard 0 Movement Arrows Keybinds 1 Fullscreen 1 Font 24/Smallcaps Map View 50x35 Zoom Use 0% Tactical HUD 1 Map Filters NONE Filters NONE Steam 1 RUN: c65718f8-0110-48fe-a2c5-1230326ddf36